Workbook

Sheet Sheet1
R1: إسم المصنف الجديد
A2: NAME | B2: TEST1 | C2: TEST2 | D2: TEST3 | E2: TEST4 | F2: TEST5 | G2: TEST6 | H2: TEST7 | I2: TEST8 | J2: TEST9 | K2: TEST10 | L2: TEST11 | M2: TEST12 | N2: TEST13 | R2: officena
A3: =MID(CELL("filename", A3), FIND("]", CELL("filename", A3)) + 1, 255) -> Sheet1 | B3: 10 | C3: 200 | D3: 50 | E3: =B3+C3 -> 210 | F3: =B3*C3+D3 -> 2050 | G3: 10 | H3: =I3+J3+K3+L3+M3+N3 -> 261 | I3: 89 | J3: 74 | K3: 23 | L3: 24 | M3: 25 | N3: 26
A4: =MID(CELL("filename", A4), FIND("]", CELL("filename", A4)) + 1, 255) -> Sheet1 | B4: 11 | C4: 101 | D4: 51 | E4: =B4+C4 -> 112 | F4: =B4*C4+D4 -> 1162 | G4: 11 | H4: =I4+J4+K4+L4+M4+N4 -> 267 | I4: 90 | J4: 75 | K4: 24 | L4: 25 | M4: 26 | N4: 27
A5: =MID(CELL("filename", A5), FIND("]", CELL("filename", A5)) + 1, 255) -> Sheet1 | B5: 12 | C5: 102 | D5: 52 | E5: 114 | F5: 1276 | G5: 12 | H5: 273 | I5: 91 | J5: 76 | K5: 25 | L5: 26 | M5: 27 | N5: 28
A6: =MID(CELL("filename", A6), FIND("]", CELL("filename", A6)) + 1, 255) -> Sheet1 | B6: 13 | C6: 103 | D6: 53 | E6: 116 | F6: 1392 | G6: 13 | H6: 279 | I6: 92 | J6: 77 | K6: 26 | L6: 27 | M6: 28 | N6: 29
A7: =MID(CELL("filename", A7), FIND("]", CELL("filename", A7)) + 1, 255) -> Sheet1 | B7: 14 | C7: 104 | D7: 54 | E7: 118 | F7: 1510 | G7: 14 | H7: 285 | I7: 93 | J7: 78 | K7: 27 | L7: 28 | M7: 29 | N7: 30
A8: =MID(CELL("filename", A8), FIND("]", CELL("filename", A8)) + 1, 255) -> Sheet1 | B8: 15 | C8: 105 | D8: 55 | E8: 120 | F8: 1630 | G8: 15 | H8: 291 | I8: 94 | J8: 79 | K8: 28 | L8: 29 | M8: 30 | N8: 31
A9: =MID(CELL("filename", A9), FIND("]", CELL("filename", A9)) + 1, 255) -> Sheet1 | B9: 16 | C9: 106 | D9: 56 | E9: 122 | F9: 1752 | G9: 16 | H9: 297 | I9: 95 | J9: 80 | K9: 29 | L9: 30 | M9: 31 | N9: 32
A10: =MID(CELL("filename", A10), FIND("]", CELL("filename", A10)) + 1, 255) -> Sheet1 | B10: 17 | C10: 107 | D10: 57 | E10: 124 | F10: 1876 | G10: 17 | H10: 303 | I10: 96 | J10: 81 | K10: 30 | L10: 31 | M10: 32 | N10: 33
A11: =MID(CELL("filename", A11), FIND("]", CELL("filename", A11)) + 1, 255) -> Sheet1 | B11: 18 | C11: 108 | D11: 58 | E11: 126 | F11: 2002 | G11: 18 | H11: 309 | I11: 97 | J11: 82 | K11: 31 | L11: 32 | M11: 33 | N11: 34
A12: =MID(CELL("filename", A12), FIND("]", CELL("filename", A12)) + 1, 255) -> Sheet1 | B12: 19 | C12: 109 | D12: 59 | E12: 128 | F12: 2130 | G12: 19 | H12: 315 | I12: 98 | J12: 83 | K12: 32 | L12: 33 | M12: 34 | N12: 35
A13: =MID(CELL("filename", A13), FIND("]", CELL("filename", A13)) + 1, 255) -> Sheet1 | B13: 20 | C13: 110 | D13: 60 | E13: 130 | F13: 2260 | G13: 20 | H13: 321 | I13: 99 | J13: 84 | K13: 33 | L13: 34 | M13: 35 | N13: 36
A14: =MID(CELL("filename", A14), FIND("]", CELL("filename", A14)) + 1, 255) -> Sheet1 | B14: 21 | C14: 111 | D14: 61 | E14: 132 | F14: 2392 | G14: 21 | H14: 327 | I14: 100 | J14: 85 | K14: 34 | L14: 35 | M14: 36 | N14: 37
A15: =MID(CELL("filename", A15), FIND("]", CELL("filename", A15)) + 1, 255) -> Sheet1 | B15: 22 | C15: 112 | D15: 62 | E15: 134 | F15: 2526 | G15: 22 | H15: 333 | I15: 101 | J15: 86 | K15: 35 | L15: 36 | M15: 37 | N15: 38
A16: =MID(CELL("filename", A16), FIND("]", CELL("filename", A16)) + 1, 255) -> Sheet1 | B16: 23 | C16: 113 | D16: 63 | E16: 136 | F16: 2662 | G16: 23 | H16: 339 | I16: 102 | J16: 87 | K16: 36 | L16: 37 | M16: 38 | N16: 39
A17: =MID(CELL("filename", A17), FIND("]", CELL("filename", A17)) + 1, 255) -> Sheet1 | B17: 24 | C17: 114 | D17: 64 | E17: 138 | F17: 2800 | G17: 24 | H17: 345 | I17: 103 | J17: 88 | K17: 37 | L17: 38 | M17: 39 | N17: 40

Sheet Sheet2
A2: NAME | B2: TEST1 | C2: TEST2 | D2: TEST3 | E2: TEST4 | F2: TEST5 | G2: TEST6 | H2: TEST7 | I2: TEST8 | J2: TEST9 | K2: TEST10 | L2: TEST11 | M2: TEST12 | N2: TEST13
A3: =MID(CELL("filename", A3), FIND("]", CELL("filename", A3)) + 1, 255) -> Sheet2 | B3: 16 | C3: 200 | D3: 50 | E3: =B3+C3 -> 216 | F3: =B3*C3+D3 -> 3250 | G3: 10 | H3: =I3+J3+K3+L3+M3+N3 -> 261 | I3: 89 | J3: 74 | K3: 23 | L3: 24 | M3: 25 | N3: 26
A4: =MID(CELL("filename", A4), FIND("]", CELL("filename", A4)) + 1, 255) -> Sheet2 | B4: 17 | C4: 101 | D4: 51 | E4: =B4+C4 -> 118 | F4: =B4*C4+D4 -> 1768 | G4: 11 | H4: =I4+J4+K4+L4+M4+N4 -> 267 | I4: 90 | J4: 75 | K4: 24 | L4: 25 | M4: 26 | N4: 27
A5: =MID(CELL("filename", A5), FIND("]", CELL("filename", A5)) + 1, 255) -> Sheet2 | B5: 18 | C5: 102 | D5: 52 | E5: 120 | F5: 1888 | G5: 12 | H5: 273 | I5: 91 | J5: 76 | K5: 25 | L5: 26 | M5: 27 | N5: 28
A6: =MID(CELL("filename", A6), FIND("]", CELL("filename", A6)) + 1, 255) -> Sheet2 | B6: 19 | C6: 103 | D6: 53 | E6: 122 | F6: 2010 | G6: 13 | H6: 279 | I6: 92 | J6: 77 | K6: 26 | L6: 27 | M6: 28 | N6: 29
A7: =MID(CELL("filename", A7), FIND("]", CELL("filename", A7)) + 1, 255) -> Sheet2 | B7: 20 | C7: 104 | D7: 54 | E7: 124 | F7: 2134 | G7: 14 | H7: 285 | I7: 93 | J7: 78 | K7: 27 | L7: 28 | M7: 29 | N7: 30
A8: =MID(CELL("filename", A8), FIND("]", CELL("filename", A8)) + 1, 255) -> Sheet2 | B8: 21 | C8: 105 | D8: 55 | E8: 126 | F8: 2260 | G8: 15 | H8: 291 | I8: 94 | J8: 79 | K8: 28 | L8: 29 | M8: 30 | N8: 31
A9: =MID(CELL("filename", A9), FIND("]", CELL("filename", A9)) + 1, 255) -> Sheet2 | B9: 22 | C9: 106 | D9: 56 | E9: 128 | F9: 2388 | G9: 16 | H9: 297 | I9: 95 | J9: 80 | K9: 29 | L9: 30 | M9: 31 | N9: 32
A10: =MID(CELL("filename", A10), FIND("]", CELL("filename", A10)) + 1, 255) -> Sheet2 | B10: 23 | C10: 107 | D10: 57 | E10: 130 | F10: 2518 | G10: 17 | H10: 303 | I10: 96 | J10: 81 | K10: 30 | L10: 31 | M10: 32 | N10: 33
A11: =MID(CELL("filename", A11), FIND("]", CELL("filename", A11)) + 1, 255) -> Sheet2 | B11: 24 | C11: 108 | D11: 58 | E11: 132 | F11: 2650 | G11: 18 | H11: 309 | I11: 97 | J11: 82 | K11: 31 | L11: 32 | M11: 33 | N11: 34
A12: =MID(CELL("filename", A12), FIND("]", CELL("filename", A12)) + 1, 255) -> Sheet2 | B12: 25 | C12: 109 | D12: 59 | E12: 134 | F12: 2784 | G12: 19 | H12: 315 | I12: 98 | J12: 83 | K12: 32 | L12: 33 | M12: 34 | N12: 35
A13: =MID(CELL("filename", A13), FIND("]", CELL("filename", A13)) + 1, 255) -> Sheet2 | B13: 26 | C13: 110 | D13: 60 | E13: 136 | F13: 2920 | G13: 20 | H13: 321 | I13: 99 | J13: 84 | K13: 33 | L13: 34 | M13: 35 | N13: 36
A14: =MID(CELL("filename", A14), FIND("]", CELL("filename", A14)) + 1, 255) -> Sheet2 | B14: 27 | C14: 111 | D14: 61 | E14: 138 | F14: 3058 | G14: 21 | H14: 327 | I14: 100 | J14: 85 | K14: 34 | L14: 35 | M14: 36 | N14: 37
A15: =MID(CELL("filename", A15), FIND("]", CELL("filename", A15)) + 1, 255) -> Sheet2 | B15: 28 | C15: 112 | D15: 62 | E15: 140 | F15: 3198 | G15: 22 | H15: 333 | I15: 101 | J15: 86 | K15: 35 | L15: 36 | M15: 37 | N15: 38
A16: =MID(CELL("filename", A16), FIND("]", CELL("filename", A16)) + 1, 255) -> Sheet2 | B16: 29 | C16: 113 | D16: 63 | E16: 142 | F16: 3340 | G16: 23 | H16: 339 | I16: 102 | J16: 87 | K16: 36 | L16: 37 | M16: 38 | N16: 39
A17: =MID(CELL("filename", A17), FIND("]", CELL("filename", A17)) + 1, 255) -> Sheet2 | B17: 30 | C17: 114 | D17: 64 | E17: 144 | F17: 3484 | G17: 24 | H17: 345 | I17: 103 | J17: 88 | K17: 37 | L17: 38 | M17: 39 | N17: 40

Sheet Sheet3
A2: NAME | B2: TEST1 | C2: TEST2 | D2: TEST3 | E2: TEST4 | F2: TEST5 | G2: TEST6 | H2: TEST7 | I2: TEST8 | J2: TEST9 | K2: TEST10 | L2: TEST11 | M2: TEST12 | N2: TEST13
A3: =MID(CELL("filename", A3), FIND("]", CELL("filename", A3)) + 1, 255) -> Sheet3 | B3: 23 | C3: 200 | D3: 50 | E3: =B3+C3 -> 223 | F3: =B3*C3+D3 -> 4650 | G3: 10 | H3: =I3+J3+K3+L3+M3+N3 -> 261 | I3: 89 | J3: 74 | K3: 23 | L3: 24 | M3: 25 | N3: 26
A4: =MID(CELL("filename", A4), FIND("]", CELL("filename", A4)) + 1, 255) -> Sheet3 | B4: 23 | C4: 101 | D4: 51 | E4: =B4+C4 -> 124 | F4: =B4*C4+D4 -> 2374 | G4: 11 | H4: =I4+J4+K4+L4+M4+N4 -> 267 | I4: 90 | J4: 75 | K4: 24 | L4: 25 | M4: 26 | N4: 27
A5: =MID(CELL("filename", A5), FIND("]", CELL("filename", A5)) + 1, 255) -> Sheet3 | B5: 23 | C5: 102 | D5: 52 | E5: 125 | F5: 2398 | G5: 12 | H5: 273 | I5: 91 | J5: 76 | K5: 25 | L5: 26 | M5: 27 | N5: 28
A6: =MID(CELL("filename", A6), FIND("]", CELL("filename", A6)) + 1, 255) -> Sheet3 | B6: 23 | C6: 103 | D6: 53 | E6: 126 | F6: 2422 | G6: 13 | H6: 279 | I6: 92 | J6: 77 | K6: 26 | L6: 27 | M6: 28 | N6: 29
A7: =MID(CELL("filename", A7), FIND("]", CELL("filename", A7)) + 1, 255) -> Sheet3 | B7: 23 | C7: 104 | D7: 54 | E7: 127 | F7: 2446 | G7: 14 | H7: 285 | I7: 93 | J7: 78 | K7: 27 | L7: 28 | M7: 29 | N7: 30
A8: =MID(CELL("filename", A8), FIND("]", CELL("filename", A8)) + 1, 255) -> Sheet3 | B8: 23 | C8: 105 | D8: 55 | E8: 128 | F8: 2470 | G8: 15 | H8: 291 | I8: 94 | J8: 79 | K8: 28 | L8: 29 | M8: 30 | N8: 31
A9: =MID(CELL("filename", A9), FIND("]", CELL("filename", A9)) + 1, 255) -> Sheet3 | B9: 23 | C9: 106 | D9: 56 | E9: 129 | F9: 2494 | G9: 16 | H9: 297 | I9: 95 | J9: 80 | K9: 29 | L9: 30 | M9: 31 | N9: 32
A10: =MID(CELL("filename", A10), FIND("]", CELL("filename", A10)) + 1, 255) -> Sheet3 | B10: 23 | C10: 107 | D10: 57 | E10: 130 | F10: 2518 | G10: 17 | H10: 303 | I10: 96 | J10: 81 | K10: 30 | L10: 31 | M10: 32 | N10: 33
A11: =MID(CELL("filename", A11), FIND("]", CELL("filename", A11)) + 1, 255) -> Sheet3 | B11: 23 | C11: 108 | D11: 58 | E11: 131 | F11: 2542 | G11: 18 | H11: 309 | I11: 97 | J11: 82 | K11: 31 | L11: 32 | M11: 33 | N11: 34
A12: =MID(CELL("filename", A12), FIND("]", CELL("filename", A12)) + 1, 255) -> Sheet3 | B12: 23 | C12: 109 | D12: 59 | E12: 132 | F12: 2566 | G12: 19 | H12: 315 | I12: 98 | J12: 83 | K12: 32 | L12: 33 | M12: 34 | N12: 35
A13: =MID(CELL("filename", A13), FIND("]", CELL("filename", A13)) + 1, 255) -> Sheet3 | B13: 23 | C13: 110 | D13: 60 | E13: 133 | F13: 2590 | G13: 20 | H13: 321 | I13: 99 | J13: 84 | K13: 33 | L13: 34 | M13: 35 | N13: 36
A14: =MID(CELL("filename", A14), FIND("]", CELL("filename", A14)) + 1, 255) -> Sheet3 | B14: 23 | C14: 111 | D14: 61 | E14: 134 | F14: 2614 | G14: 21 | H14: 327 | I14: 100 | J14: 85 | K14: 34 | L14: 35 | M14: 36 | N14: 37
A15: =MID(CELL("filename", A15), FIND("]", CELL("filename", A15)) + 1, 255) -> Sheet3 | B15: 23 | C15: 112 | D15: 62 | E15: 135 | F15: 2638 | G15: 22 | H15: 333 | I15: 101 | J15: 86 | K15: 35 | L15: 36 | M15: 37 | N15: 38
A16: =MID(CELL("filename", A16), FIND("]", CELL("filename", A16)) + 1, 255) -> Sheet3 | B16: 23 | C16: 113 | D16: 63 | E16: 136 | F16: 2662 | G16: 23 | H16: 339 | I16: 102 | J16: 87 | K16: 36 | L16: 37 | M16: 38 | N16: 39
A17: =MID(CELL("filename", A17), FIND("]", CELL("filename", A17)) + 1, 255) -> Sheet3 | B17: 23 | C17: 114 | D17: 64 | E17: 137 | F17: 2686 | G17: 24 | H17: 345 | I17: 103 | J17: 88 | K17: 37 | L17: 38 | M17: 39 | N17: 40

Sheet Sheet4
A2: NAME | B2: TEST1 | C2: TEST2 | D2: TEST3 | E2: TEST4 | F2: TEST5 | G2: TEST6 | H2: TEST7 | I2: TEST8 | J2: TEST9 | K2: TEST10 | L2: TEST11 | M2: TEST12 | N2: TEST13
A3: =MID(CELL("filename", A3), FIND("]", CELL("filename", A3)) + 1, 255) -> Sheet4 | B3: 1020 | C3: 200 | D3: 50 | E3: =B3+C3 -> 1220 | F3: =B3*C3+D3 -> 204050 | G3: 10 | H3: =I3+J3+K3+L3+M3+N3 -> 261 | I3: 89 | J3: 74 | K3: 23 | L3: 24 | M3: 25 | N3: 26
A4: =MID(CELL("filename", A4), FIND("]", CELL("filename", A4)) + 1, 255) -> Sheet4 | B4: 1020 | C4: 101 | D4: 51 | E4: =B4+C4 -> 1121 | F4: =B4*C4+D4 -> 103071 | G4: 11 | H4: =I4+J4+K4+L4+M4+N4 -> 267 | I4: 90 | J4: 75 | K4: 24 | L4: 25 | M4: 26 | N4: 27
A5: =MID(CELL("filename", A5), FIND("]", CELL("filename", A5)) + 1, 255) -> Sheet4 | B5: 1020 | C5: 102 | D5: 52 | E5: 1122 | F5: 104092 | G5: 12 | H5: 273 | I5: 91 | J5: 76 | K5: 25 | L5: 26 | M5: 27 | N5: 28
A6: =MID(CELL("filename", A6), FIND("]", CELL("filename", A6)) + 1, 255) -> Sheet4 | B6: 1020 | C6: 103 | D6: 53 | E6: 1123 | F6: 105113 | G6: 13 | H6: 279 | I6: 92 | J6: 77 | K6: 26 | L6: 27 | M6: 28 | N6: 29
A7: =MID(CELL("filename", A7), FIND("]", CELL("filename", A7)) + 1, 255) -> Sheet4 | B7: 1020 | C7: 104 | D7: 54 | E7: 1124 | F7: 106134 | G7: 14 | H7: 285 | I7: 93 | J7: 78 | K7: 27 | L7: 28 | M7: 29 | N7: 30
A8: =MID(CELL("filename", A8), FIND("]", CELL("filename", A8)) + 1, 255) -> Sheet4 | B8: 1020 | C8: 105 | D8: 55 | E8: 1125 | F8: 107155 | G8: 15 | H8: 291 | I8: 94 | J8: 79 | K8: 28 | L8: 29 | M8: 30 | N8: 31
A9: =MID(CELL("filename", A9), FIND("]", CELL("filename", A9)) + 1, 255) -> Sheet4 | B9: 1020 | C9: 106 | D9: 56 | E9: 1126 | F9: 108176 | G9: 16 | H9: 297 | I9: 95 | J9: 80 | K9: 29 | L9: 30 | M9: 31 | N9: 32
A10: =MID(CELL("filename", A10), FIND("]", CELL("filename", A10)) + 1, 255) -> Sheet4 | B10: 1020 | C10: 107 | D10: 57 | E10: 1127 | F10: 109197 | G10: 17 | H10: 303 | I10: 96 | J10: 81 | K10: 30 | L10: 31 | M10: 32 | N10: 33
A11: =MID(CELL("filename", A11), FIND("]", CELL("filename", A11)) + 1, 255) -> Sheet4 | B11: 1020 | C11: 108 | D11: 58 | E11: 1128 | F11: 110218 | G11: 18 | H11: 309 | I11: 97 | J11: 82 | K11: 31 | L11: 32 | M11: 33 | N11: 34
A12: =MID(CELL("filename", A12), FIND("]", CELL("filename", A12)) + 1, 255) -> Sheet4 | B12: 1020 | C12: 109 | D12: 59 | E12: 1129 | F12: 111239 | G12: 19 | H12: 315 | I12: 98 | J12: 83 | K12: 32 | L12: 33 | M12: 34 | N12: 35
A13: =MID(CELL("filename", A13), FIND("]", CELL("filename", A13)) + 1, 255) -> Sheet4 | B13: 1020 | C13: 110 | D13: 60 | E13: 1130 | F13: 112260 | G13: 20 | H13: 321 | I13: 99 | J13: 84 | K13: 33 | L13: 34 | M13: 35 | N13: 36
A14: =MID(CELL("filename", A14), FIND("]", CELL("filename", A14)) + 1, 255) -> Sheet4 | B14: 1020 | C14: 111 | D14: 61 | E14: 1131 | F14: 113281 | G14: 21 | H14: 327 | I14: 100 | J14: 85 | K14: 34 | L14: 35 | M14: 36 | N14: 37
A15: =MID(CELL("filename", A15), FIND("]", CELL("filename", A15)) + 1, 255) -> Sheet4 | B15: 1020 | C15: 112 | D15: 62 | E15: 1132 | F15: 114302 | G15: 22 | H15: 333 | I15: 101 | J15: 86 | K15: 35 | L15: 36 | M15: 37 | N15: 38
A16: =MID(CELL("filename", A16), FIND("]", CELL("filename", A16)) + 1, 255) -> Sheet4 | B16: 1020 | C16: 113 | D16: 63 | E16: 1133 | F16: 115323 | G16: 23 | H16: 339 | I16: 102 | J16: 87 | K16: 36 | L16: 37 | M16: 38 | N16: 39
A17: =MID(CELL("filename", A17), FIND("]", CELL("filename", A17)) + 1, 255) -> Sheet4 | B17: 1020 | C17: 114 | D17: 64 | E17: 1134 | F17: 116344 | G17: 24 | H17: 345 | I17: 103 | J17: 88 | K17: 37 | L17: 38 | M17: 39 | N17: 40

Sheet Sheet5
A2: NAME | B2: TEST1 | C2: TEST2 | D2: TEST3 | E2: TEST4 | F2: TEST5 | G2: TEST6 | H2: TEST7 | I2: TEST8 | J2: TEST9 | K2: TEST10 | L2: TEST11 | M2: TEST12 | N2: TEST13
A3: =MID(CELL("filename", A3), FIND("]", CELL("filename", A3)) + 1, 255) -> Sheet5 | B3: 444 | C3: 200 | D3: 50 | E3: =B3+C3 -> 644 | F3: =B3*C3+D3 -> 88850 | G3: 10 | H3: =I3+J3+K3+L3+M3+N3 -> 261 | I3: 89 | J3: 74 | K3: 23 | L3: 24 | M3: 25 | N3: 26
A4: =MID(CELL("filename", A4), FIND("]", CELL("filename", A4)) + 1, 255) -> Sheet5 | B4: 445 | C4: 101 | D4: 51 | E4: =B4+C4 -> 546 | F4: =B4*C4+D4 -> 44996 | G4: 11 | H4: =I4+J4+K4+L4+M4+N4 -> 267 | I4: 90 | J4: 75 | K4: 24 | L4: 25 | M4: 26 | N4: 27
A5: =MID(CELL("filename", A5), FIND("]", CELL("filename", A5)) + 1, 255) -> Sheet5 | B5: 446 | C5: 102 | D5: 52 | E5: 548 | F5: 45544 | G5: 12 | H5: 273 | I5: 91 | J5: 76 | K5: 25 | L5: 26 | M5: 27 | N5: 28
A6: =MID(CELL("filename", A6), FIND("]", CELL("filename", A6)) + 1, 255) -> Sheet5 | B6: 447 | C6: 103 | D6: 53 | E6: 550 | F6: 46094 | G6: 13 | H6: 279 | I6: 92 | J6: 77 | K6: 26 | L6: 27 | M6: 28 | N6: 29
A7: =MID(CELL("filename", A7), FIND("]", CELL("filename", A7)) + 1, 255) -> Sheet5 | B7: 448 | C7: 104 | D7: 54 | E7: 552 | F7: 46646 | G7: 14 | H7: 285 | I7: 93 | J7: 78 | K7: 27 | L7: 28 | M7: 29 | N7: 30
A8: =MID(CELL("filename", A8), FIND("]", CELL("filename", A8)) + 1, 255) -> Sheet5 | B8: 449 | C8: 105 | D8: 55 | E8: 554 | F8: 47200 | G8: 15 | H8: 291 | I8: 94 | J8: 79 | K8: 28 | L8: 29 | M8: 30 | N8: 31
A9: =MID(CELL("filename", A9), FIND("]", CELL("filename", A9)) + 1, 255) -> Sheet5 | B9: 450 | C9: 106 | D9: 56 | E9: 556 | F9: 47756 | G9: 16 | H9: 297 | I9: 95 | J9: 80 | K9: 29 | L9: 30 | M9: 31 | N9: 32
A10: =MID(CELL("filename", A10), FIND("]", CELL("filename", A10)) + 1, 255) -> Sheet5 | B10: 451 | C10: 107 | D10: 57 | E10: 558 | F10: 48314 | G10: 17 | H10: 303 | I10: 96 | J10: 81 | K10: 30 | L10: 31 | M10: 32 | N10: 33
A11: =MID(CELL("filename", A11), FIND("]", CELL("filename", A11)) + 1, 255) -> Sheet5 | B11: 452 | C11: 108 | D11: 58 | E11: 560 | F11: 48874 | G11: 18 | H11: 309 | I11: 97 | J11: 82 | K11: 31 | L11: 32 | M11: 33 | N11: 34
A12: =MID(CELL("filename", A12), FIND("]", CELL("filename", A12)) + 1, 255) -> Sheet5 | B12: 453 | C12: 109 | D12: 59 | E12: 562 | F12: 49436 | G12: 19 | H12: 315 | I12: 98 | J12: 83 | K12: 32 | L12: 33 | M12: 34 | N12: 35
A13: =MID(CELL("filename", A13), FIND("]", CELL("filename", A13)) + 1, 255) -> Sheet5 | B13: 454 | C13: 110 | D13: 60 | E13: 564 | F13: 50000 | G13: 20 | H13: 321 | I13: 99 | J13: 84 | K13: 33 | L13: 34 | M13: 35 | N13: 36
A14: =MID(CELL("filename", A14), FIND("]", CELL("filename", A14)) + 1, 255) -> Sheet5 | B14: 455 | C14: 111 | D14: 61 | E14: 566 | F14: 50566 | G14: 21 | H14: 327 | I14: 100 | J14: 85 | K14: 34 | L14: 35 | M14: 36 | N14: 37
A15: =MID(CELL("filename", A15), FIND("]", CELL("filename", A15)) + 1, 255) -> Sheet5 | B15: 456 | C15: 112 | D15: 62 | E15: 568 | F15: 51134 | G15: 22 | H15: 333 | I15: 101 | J15: 86 | K15: 35 | L15: 36 | M15: 37 | N15: 38
A16: =MID(CELL("filename", A16), FIND("]", CELL("filename", A16)) + 1, 255) -> Sheet5 | B16: 457 | C16: 113 | D16: 63 | E16: 570 | F16: 51704 | G16: 23 | H16: 339 | I16: 102 | J16: 87 | K16: 36 | L16: 37 | M16: 38 | N16: 39
A17: =MID(CELL("filename", A17), FIND("]", CELL("filename", A17)) + 1, 255) -> Sheet5 | B17: 458 | C17: 114 | D17: 64 | E17: 572 | F17: 52276 | G17: 24 | H17: 345 | I17: 103 | J17: 88 | K17: 37 | L17: 38 | M17: 39 | N17: 40
